bitfinex/quotes_SOLUSD_20220306
["timestamp","ask_amount","ask_price","bid_price","bid_amount"]
[1646602949001,5.817,85.987,85.921,24.4628]
[1646602949202,5.817,85.987,85.93,17.4615]
[1646602949503,5.817,85.987,85.931,24.4628]
[1646602950001,5.816,85.989,85.931,24.4628]
[1646602950201,5.816,85.989,85.931,31.8628]
[1646602951003,1.59088363,85.991,85.931,31.8628]
[1646602951702,1.59088363,85.992,85.931,31.8628]
[1646602952103,1.59088363,85.992,85.941,0.52605492]
[1646602952308,11.25392059,86.002,85.943,0.62051244]
[1646602952702,9.66303696,86.002,85.943,0.62051244]
[1646602953704,9.66303696,86.002,85.96,17.4535]
[1646602954004,9.66303696,86.002,85.961,0.62051244]
[1646602954908,9.66303696,86.002,85.942,22.8721]
[1646602956706,9.66303696,86.002,85.95,17.4583]
[1646602957813,5.815,86.001,85.95,17.4583]
[1646602965921,7.40588363,86.001,85.95,17.4583]
[1646602966522,7.40588363,86.001,85.942,22.8721]
[1646602966920,1.59088363,86.0,85.942,22.8721]
[1646602967122,5.815,85.999,85.942,22.8721]
[1646602967722,1.59088363,85.998,85.95,17.4585]
[1646602968122,5.815,85.997,85.95,17.4585]
[1646602968822,5.815,85.997,85.942,22.8721]
[1646602969425,1.59088363,85.995,85.942,22.8721]
[1646602969625,5.816,85.994,85.942,22.8721]
[1646602970526,5.816,85.994,85.95,17.4584]
[1646602971530,5.815,85.995,85.95,17.4584]
[1646602971726,1.59088363,85.993,85.95,17.4584]
[1646602971927,5.815,85.992,85.95,17.4584]
[1646602972126,7.40588363,85.992,85.95,17.4584]
[1646602973630,1.59088363,85.991,85.95,17.4584]
[1646602973828,1.59088363,85.99,85.95,17.4584]
[1646602974227,1.59088363,85.991,85.95,17.4584]
[1646602975734,1.59088363,85.988,85.95,17.4584]
[1646602977029,1.59088363,85.987,85.95,17.4584]
[1646602977830,1.59088363,85.985,85.95,17.4584]
[1646602979555,1.59088363,85.983,85.95,17.4584]
[1646602980557,1.59088363,85.982,85.95,17.4584]
[1646602980758,1.59088363,85.983,85.95,17.4584]
[1646602981558,1.59088363,85.979,85.95,17.4584]
[1646602981761,1.59088363,85.983,85.95,17.4584]
[1646602981959,1.59088363,85.984,85.95,17.4584]
[1646602982160,5.816,86.001,85.95,17.4584]
[1646602982161,1.59088363,85.985,85.95,17.4584]
[1646602983660,1.59088363,85.985,85.951,5.816]
[1646602983864,1.59088363,85.985,85.96,17.4564]
[1646602984262,8.363e-05,85.985,85.96,24.6364]
[1646602984462,9.66303696,86.002,85.961,0.52423515]
[1646602984661,9.66303696,86.002,85.961,24.50443515]
[1646602984860,9.66303696,86.002,85.97,17.4498]
[1646602985662,9.66303696,86.002,85.971,0.49534796]
[1646602985862,9.66303696,86.002,85.97,17.4498]
[1646602986064,9.66303696,86.002,85.98,17.4516]
[1646602989665,9.66303696,86.002,85.97,17.4538]
[1646602989864,9.66303696,86.002,85.971,5.814]
[1646602990068,9.66303696,86.002,85.97,17.4538]
[1646602991669,9.66303696,86.002,85.98,17.4503]
[1646603012708,5.814,86.023,85.98,17.4503]
[1646603015409,5.814,86.023,85.981,23.1632]
[1646603018712,5.814,86.023,85.99,17.4489]
[1646603018913,67.36214044,86.06,85.991,24.1755]
[1646603018914,5.813,86.037,85.991,24.1755]
[1646603019113,5.813,86.037,85.983,5.813]
[1646603019313,5.813,86.045,85.952,0.50588631]
[1646603019515,6.360861,86.044,85.96,13.94]
[1646603019712,6.360861,86.048,85.96,13.94]
[1646603019914,6.360861,86.048,85.98,58.1595]
[1646603020114,39.68538587,86.05,85.981,24.1755]
[1646603020115,9.52978113,86.049,85.981,24.1755]
[1646603020515,3.16892013,86.047,85.982,5.812]
[1646603020914,3.16892013,86.048,85.982,5.812]
[1646603021115,6.360861,86.046,85.99,17.4485]
[1646603021315,9.52978113,86.049,85.991,29.3399]
[1646603021514,9.52978113,86.049,85.991,23.5279]
[1646603022014,6.360861,86.048,85.991,23.5279]
[1646603022314,9.52978113,86.049,86.0,17.4483]
[1646603022515,6.360861,86.049,86.0,17.4483]
[1646603022817,9.52978113,86.049,86.0,17.4483]
[1646603023014,5.812,86.048,86.0,17.4483]
[1646603023215,6.360861,86.047,86.0,17.4483]
[1646603023416,5.812,86.046,86.0,17.4483]
[1646603023615,6.360861,86.045,86.0,17.4483]
[1646603023816,5.812,86.044,86.0,17.4483]
[1646603024020,6.360861,86.043,86.0,17.4483]
[1646603024217,5.812,86.042,86.0,17.4483]
[1646603024619,5.812,86.049,86.0,17.4483]
[1646603024818,6.36100196,86.048,86.0,17.4483]
[1646603025019,5.812,86.047,86.0,17.4483]
[1646603025218,6.36100196,86.046,86.0,17.4483]
[1646603025424,5.812,86.045,86.0,17.4483]
[1646603026019,5.812,86.049,86.0,17.4483]
[1646603026219,6.36100065,86.048,86.0,17.4483]
[1646603026419,5.812,86.047,86.0,17.4483]
[1646603026620,6.36100065,86.046,86.0,17.4483]
[1646603026918,5.812,86.045,86.0,17.4483]
[1646603027521,5.812,86.049,86.0,17.4483]
[1646603027924,6.36096507,86.048,86.0,17.4483]
[1646603028121,5.812,86.047,86.0,17.4483]
[1646603028321,6.36096507,86.046,86.0,17.4483]
[1646603028522,5.812,86.045,86.0,17.4483]
[1646603028921,5.812,86.049,86.0,17.4483]
[1646603029121,6.36102191,86.048,86.0,17.4483]
[1646603029322,5.812,86.047,86.0,17.4483]
[1646603029724,6.36102191,86.046,86.0,17.4483]
[1646603029923,5.812,86.045,85.991,23.5279]
[1646603030123,5.812,86.045,85.992,5.812]
[1646603030324,6.36102191,86.044,85.992,5.812]
[1646603030626,5.812,86.043,85.992,5.812]
[1646603030823,6.36102191,86.042,85.992,5.812]
[1646603031026,17.4489,86.04,85.991,23.5279]
[1646603031224,5.812,86.039,85.991,23.5279]
[1646603031423,28.7702,86.039,85.991,23.5279]
[1646603034528,17.4512,86.03,85.972,5.812]
[1646603034827,29.6029,86.029,85.973,23.1722]
[1646603035228,6.36222608,86.028,85.973,23.1722]
[1646603036129,17.4551,86.02,85.973,23.1722]
[1646603038729,5.814,86.019,85.973,23.1722]
[1646603041938,17.4552,86.01,85.961,5.814]
[1646603042140,69.58270264,86.009,85.92,47.8199]
[1646603042340,24.0671,86.008,85.92,47.8199]
[1646603042538,26.48030627,86.008,85.92,47.8199]
[1646603042739,12.18047214,86.007,85.92,47.8199]
[1646603042939,17.4639,85.99,85.92,47.8199]
[1646603043138,63.2838589,85.988,85.92,47.8199]
[1646603043546,31.49508371,85.987,85.886,2.83613526]
[1646603043740,48.6701543,85.987,85.886,2.83613526]
[1646603043938,28.09140331,85.986,85.886,2.83613526]
[1646603044138,5.817,85.985,85.876,47.9532]
[1646603044441,56.28013556,85.969,85.89,17.469]
[1646603044638,5.817,85.968,85.891,23.023]
[1646603044838,5.817,85.968,85.891,25.85913526]
[1646603045038,5.817,85.968,85.892,2.83613526]
[1646603045663,17.467,85.96,85.9,17.467]
[1646603045839,5.817,85.959,85.901,23.023]
[1646603046243,5.817,85.968,85.901,23.023]
[1646603046841,17.95876413,85.968,85.901,23.023]
[1646603047242,17.4673,85.95,85.901,23.023]
[1646603047441,5.817,85.949,85.901,23.023]
[1646603050049,5.817,85.949,85.9,17.467]
[1646603050851,17.4694,85.94,85.892,2.83613526]
[1646603051053,5.819,85.967,85.892,2.83613526]
[1646603052251,17.469,85.95,85.9,17.468]
[1646603052453,5.819,85.949,85.901,24.506]
[1646603056177,17.4693,85.94,85.901,24.506]
[1646603058877,17.4678,85.95,85.901,24.506]
[1646603059075,5.817,85.949,85.901,24.506]
[1646603059276,23.2413,85.969,85.902,2.83613526]
[1646603059475,23.2413,85.969,85.903,0.59703662]
[1646603059882,23.2413,85.969,85.904,2.83613526]
[1646603060077,23.2413,85.969,85.91,17.4659]
[1646603060680,23.2413,85.969,85.911,23.9321]
[1646603061084,5.817,85.968,85.92,17.4622]
[1646603061281,5.817,85.968,85.921,23.9321]
[1646603062084,23.2413,85.969,85.921,23.9321]
[1646603062686,17.4654,85.96,85.921,23.9321]
[1646603063286,5.817,85.968,85.921,23.9321]
[1646603065288,5.817,85.968,85.93,17.4618]
[1646603065689,5.817,85.979,85.93,17.4618]
[1646603065892,5.817,85.979,85.931,23.5254]
[1646603066792,17.463,85.97,85.931,23.5254]
[1646603067094,5.817,85.969,85.931,23.5254]
[1646603068691,17.4618,85.98,85.931,23.5254]
[1646603071792,5.816,85.979,85.931,23.5254]
[1646603074497,17.4633,85.97,85.931,23.5254]
[1646603080806,17.4633,85.97,85.905,5.817]
[1646603080807,77.88686634,85.97,85.905,5.817]
[1646603081007,17.4732,85.95,85.905,23.6025]
[1646603081507,5.817,85.949,85.905,23.6025]
[1646603082405,5.817,85.949,85.88,17.4718]
[1646603082606,24.925,85.948,85.881,24.2444]
[1646603082805,5.819,85.947,85.882,5.819]
[1646603083006,24.925,85.948,85.882,5.819]
[1646603083204,62.05957171,85.939,85.882,5.819]
[1646603083605,5.82,85.938,85.882,5.819]
[1646603084406,5.82,85.938,85.84,58.2481]
[1646603084407,17.4717,85.93,85.84,58.2481]
[1646603084609,17.4717,85.93,85.856,24.2444]
[1646603085106,5.821,85.929,85.857,2.83613526]
[1646603085308,5.821,85.929,85.86,17.4752]
[1646603085506,17.4738,85.92,85.86,17.4752]
[1646603085710,5.821,85.919,85.86,17.4752]
[1646603089407,17.4755,85.91,85.861,5.821]
[1646603090713,17.4755,85.91,85.87,17.4744]
[1646603091714,17.4739,85.92,85.87,17.4744]
[1646603091915,5.821,85.919,85.871,24.5473]
[1646603095543,17.4762,85.91,85.851,5.821]
[1646603095744,17.4762,85.91,85.783,3.13737021]
[1646603095946,0.0080514,85.789,85.777,48.2378]
[1646603096145,99.02445293,85.909,85.78,13.94]
[1646603096342,99.02445293,85.909,85.778,20.26514445]
[1646603096343,6.37200913,85.908,85.778,20.26514445]
[1646603096544,5.824,85.907,85.778,20.26514445]
[1646603096745,17.4825,85.88,85.78,17.4887]
[1646603096943,5.825,85.879,85.78,17.4887]
[1646603097142,8.23759522,85.879,85.78,17.4887]
[1646603097542,32.58885769,85.881,85.78,17.4887]
[1646603097746,19.66117136,85.906,85.78,38.4987]
[1646603097943,27.41931237,85.907,85.78,41.33483526]
[1646603098143,5.824,85.906,85.81,17.4769]
[1646603098344,5.824,85.906,85.811,47.3559]
[1646603099643,27.41931237,85.905,85.811,47.3559]
[1646603100250,17.4783,85.9,85.83,17.4786]
[1646603100545,17.4783,85.9,85.831,22.7041]
[1646603101946,17.4783,85.9,85.84,17.4776]
[1646603102146,17.4783,85.9,85.841,24.3508]
[1646603102347,5.822,85.899,85.841,24.3508]
[1646603107550,27.41931237,85.905,85.841,24.3508]
[1646603107551,5.822,85.904,85.841,24.3508]
[1646603107956,33.24131237,85.904,85.841,24.3508]
[1646603111761,5.822,85.904,85.841,24.3508]
[1646603112060,5.822,85.909,85.842,0.49462317]
[1646603112261,5.822,85.909,85.841,24.3508]
[1646603112462,5.822,85.909,85.85,17.4762]
[1646603112659,5.822,85.909,85.851,24.1095]
[1646603113260,17.4762,85.91,85.851,24.1095]
[1646603117067,26.22331237,85.909,85.811,24.6518]
[1646603117264,17.483,85.88,85.812,24.6501]
[1646603118865,5.824,85.879,85.812,24.6501]
[1646603119267,5.824,85.879,85.82,17.4818]
[1646603124694,5.824,85.879,85.821,5.824]
[1646603125394,5.824,85.879,85.822,24.8794]
[1646603125594,5.824,85.879,85.823,5.824]
[1646603126697,5.824,85.879,85.822,24.8794]
[1646603130101,5.824,85.879,85.823,5.824]
[1646603131006,5.824,85.879,85.824,2.22612841]
[1646603131606,5.824,85.879,85.825,5.824]
[1646603132403,5.824,85.879,85.825,3.324]
[1646603133204,17.483,85.88,85.825,3.324]
[1646603134004,17.483,85.88,85.826,2.22612841]
[1646603134204,17.483,85.88,85.827,5.823]
[1646603136406,5.823,85.879,85.827,5.823]
[1646603137008,5.823,85.879,85.828,2.22612841]
[1646603139507,17.483,85.88,85.828,2.22612841]
[1646603142812,5.823,85.879,85.828,2.22612841]
[1646603143819,28.8695,85.879,85.828,2.22612841]
[1646603146121,30.44853485,85.879,85.828,2.22612841]
[1646603146323,1.57903485,85.875,85.828,2.22612841]
[1646603148341,17.4834,85.87,85.828,2.22612841]
[1646603151446,1.57903485,85.874,85.828,2.22612841]
[1646603151646,5.824,85.873,85.83,17.4816]
[1646603151844,1.57903485,85.875,85.83,17.4816]
[1646603152043,1.57903485,85.874,85.83,17.4816]
[1646603152242,1.57903485,85.874,85.831,2.22612841]
[1646603152444,1.57903485,85.875,85.831,2.22612841]
[1646603152644,7.40203485,85.874,85.831,2.22612841]
[1646603152844,1.57903485,85.874,85.832,22.6553]
[1646603153444,1.57903485,85.875,85.832,22.6553]
[1646603153645,5.823,85.874,85.832,22.6553]
[1646603153846,7.40203485,85.874,85.832,22.6553]
[1646603154044,1.57903485,85.874,85.832,22.6553]
[1646603154545,1.57903485,85.875,85.832,22.6553]
[1646603154745,23.0465,85.879,85.832,22.6553]
[1646603154746,7.40203485,85.874,85.832,22.6553]
[1646603155145,1.57903485,85.874,85.832,22.6553]
[1646603155351,90.0,85.874,85.827,5.823]
[1646603155547,23.0465,85.879,85.827,0.68940119]
[1646603155548,90.0,85.869,85.827,0.68940119]
[1646603155747,1.57903485,85.862,85.771,3.13737021]
[1646603155947,1.57903485,85.862,85.746,4.70605532]
[1646603155948,1.57903485,85.862,85.765,3.13737021]
[1646603156150,1.57903485,85.862,85.741,58.39]
[1646603156151,1.57903485,85.843,85.751,3.13737021]
[1646603156349,1.57903485,85.832,85.741,3.13737021]
[1646603156548,17.5014,85.82,85.733,46.8716]
[1646603156852,63.58143999,85.819,85.733,46.8716]
[1646603157047,1.57903485,85.806,85.733,46.8716]
[1646603157250,49.66367862,85.805,85.707,18.82247669]
[1646603157449,17.501,85.8,85.707,18.82247669]
[1646603157651,1.57903485,85.797,85.707,18.82247669]
[1646603157949,25.091,85.8,85.691,118.95457177]
[1646603157950,1.57903485,85.787,85.708,16.20541775]
[1646603158151,5.831,85.786,85.708,1.31507297]
[1646603158352,1.57903485,85.788,85.708,1.31507297]
[1646603158557,1.57903485,85.808,85.71,17.5041]
[1646603158752,1.57903485,85.812,85.711,49.322]
[1646603158949,1.57903485,85.815,85.72,58.3219]
[1646603159151,5.829,85.814,85.72,58.3219]
[1646603159352,5.829,85.815,85.72,58.3219]
[1646603159550,5.829,85.817,85.72,58.3219]
[1646603159751,7.40803485,85.818,85.721,2.83613526]
[1646603159951,17.4975,85.81,85.74,17.4966]
[1646603160153,5.829,85.809,85.711,24.9235]
[1646603160353,61.42682671,85.808,85.711,24.9235]
[1646603160552,1.57903485,85.804,85.711,24.9235]
[1646603160756,13.94,85.8,85.711,24.9235]
[1646603160954,17.5066,85.78,85.711,24.9235]
[1646603161154,5.831,85.779,85.711,24.9235]
[1646603161355,5.831,85.801,85.711,24.9235]
[1646603161755,5.83,85.802,85.712,1.31507297]
[1646603163156,17.5017,85.79,85.72,17.5028]
[1646603163356,5.83,85.789,85.72,17.5028]
[1646603163556,5.83,85.789,85.713,23.5028]
[1646603163756,5.83,85.798,85.713,23.5028]
[1646603163957,27.73717102,85.788,85.713,23.5028]
[1646603164158,5.83,85.787,85.713,23.5028]
[1646603164465,61.32557077,85.786,85.713,23.5028]
[1646603164657,17.5037,85.78,85.714,1.31507297]
[1646603164858,40.6437,85.78,85.714,1.31507297]
[1646603165062,5.831,85.779,85.714,1.31507297]
[1646603165258,1.57903485,85.778,85.714,1.31507297]
[1646603165457,5.831,85.777,85.714,1.31507297]
[1646603165657,58.48252155,85.777,85.714,1.31507297]
[1646603165857,2.41251837,85.776,85.714,1.31507297]
[1646603166061,5.831,85.775,85.714,1.31507297]
[1646603166357,17.5133,85.76,85.714,1.31507297]
[1646603166559,5.831,85.759,85.714,1.31507297]
[1646603166764,35.98068939,85.759,85.714,1.31507297]
[1646603166962,2.41251837,85.758,85.714,1.31507297]
[1646603167160,5.831,85.757,85.681,1.31507297]
[1646603167563,17.5121,85.75,85.681,1.31507297]
[1646603167766,5.833,85.749,85.63,13.94]
[1646603167967,8.24551837,85.749,85.622,46.9515]
[1646603168164,53.27286781,85.748,85.623,2.83613526]
[1646603168368,53.27286781,85.748,85.627,2.83613526]
[1646603168369,5.833,85.747,85.627,2.83613526]
[1646603168567,30.74735053,85.747,85.627,2.83613526]
[1646603168964,24.91435053,85.746,85.627,2.83613526]
[1646603169165,17.5187,85.73,85.64,17.5189]
[1646603169365,60.25587227,85.728,85.64,17.5189]
[1646603169570,5.835,85.727,85.641,1.292453]
[1646603170065,5.835,85.728,85.641,1.292453]
[1646603170467,5.835,85.728,85.642,2.83613526]
[1646603170669,2.41418099,85.745,85.642,2.83613526]
[1646603171068,12.14307855,85.741,85.642,2.83613526]
[1646603171271,5.833,85.74,85.642,2.83613526]
[1646603172266,23.3466,85.74,85.65,17.5156]
[1646603173270,23.3466,85.74,85.651,1.292453]
[1646603173670,2.41418099,85.739,85.651,1.292453]
[1646603173872,17.5194,85.72,85.651,1.292453]
[1646603174172,5.833,85.738,85.651,1.292453]
[1646603174173,64.35861272,85.719,85.651,1.292453]
[1646603174370,58.4232,85.71,85.651,1.292453]
[1646603174575,5.835,85.709,85.651,1.292453]
[1646603174873,8.24918099,85.709,85.651,1.292453]
[1646603175273,2.41418099,85.708,85.651,1.292453]
[1646603175872,5.835,85.707,85.651,1.292453]
[1646603176473,5.835,85.707,85.631,1.292453]
[1646603176872,5.835,85.707,85.64,17.5187]
[1646603178373,5.836,85.727,85.64,17.5187]
[1646603178575,5.836,85.727,85.641,22.6755]
[1646603178774,5.835,85.73,85.66,17.5133]
[1646603178975,5.835,85.73,85.66,27.0533]
[1646603179373,5.833,85.742,85.66,27.0533]
[1646603179573,5.833,85.743,85.661,1.292453]
[1646603179776,5.833,85.743,85.67,17.5109]
[1646603180377,5.833,85.748,85.67,17.5109]
[1646603180575,64.87250458,85.742,85.67,17.5109]
[1646603180796,5.833,85.741,85.67,17.5109]
[1646603181695,5.833,85.748,85.67,17.5109]
[1646603182301,5.833,85.749,85.67,17.5109]
[1646603182705,5.833,85.749,85.671,1.292453]
[1646603182905,5.833,85.753,85.69,17.5069]
[1646603183103,5.832,85.759,85.69,17.5069]
[1646603184603,1.57903485,85.758,85.69,17.5069]
[1646603184812,5.832,85.757,85.69,17.5069]
[1646603185203,5.832,85.758,85.69,17.5069]
[1646603185604,59.46439503,85.759,85.69,17.5069]
[1646603185804,1.57903485,85.758,85.691,1.292453]
[1646603186002,5.832,85.757,85.691,1.292453]
[1646603186203,5.832,85.757,85.7,17.5068]
[1646603186403,1.57903485,85.75,85.7,17.5068]
[1646603186604,1.57903485,85.754,85.7,17.5068]
[1646603187204,1.57903485,85.754,85.7,31.4468]
[1646603187407,1.57903485,85.76,85.7,31.4468]
[1646603187604,1.57903485,85.761,85.7,31.4468]
[1646603188004,1.57903485,85.762,85.7,31.4468]
[1646603188207,1.57903485,85.763,85.7,31.4468]
[1646603188408,1.57903485,85.761,85.7,31.4468]
[1646603188807,1.57903485,85.761,85.701,1.292453]
[1646603189207,1.57903485,85.762,85.71,17.503]
[1646603189610,1.57903485,85.762,85.71,31.443]
[1646603189810,1.57903485,85.765,85.71,31.443]
[1646603190110,1.57903485,85.767,85.71,31.443]
[1646603190611,1.57903485,85.769,85.71,40.053]
[1646603190808,1.57903485,85.77,85.712,0.6280152]
[1646603191011,1.57903485,85.77,85.72,17.4997]
[1646603191209,1.57903485,85.771,85.72,17.4997]
[1646603191609,1.57903485,85.771,85.72,31.4397]
[1646603191810,1.57903485,85.771,85.721,1.292453]
[1646603192011,1.57903485,85.771,85.73,17.5011]
[1646603192617,56.96015943,85.774,85.73,17.5011]
[1646603192813,1.57903485,85.77,85.721,1.292453]
[1646603193013,1.57903485,85.757,85.721,1.292453]
[1646603193213,1.57903485,85.752,85.721,1.292453]
[1646603193413,29.99378724,85.773,85.721,1.292453]
[1646603193414,1.57903485,85.753,85.721,1.292453]
[1646603193612,1.57903485,85.751,85.721,1.292453]
[1646603193812,1.57903485,85.752,85.721,1.292453]
[1646603194011,60.73583733,85.767,85.721,1.292453]
[1646603194012,1.57903485,85.753,85.721,1.292453]
[1646603194213,17.5097,85.75,85.721,1.292453]
[1646603194815,1.57903485,85.749,85.712,1.292453]
[1646603195013,1.57903485,85.743,85.712,1.292453]
[1646603195415,61.14041787,85.739,85.712,1.292453]
[1646603195617,5.832,85.738,85.712,1.292453]
[1646603195916,56.36205092,85.722,85.712,1.292453]
[1646603196215,2.25555725,85.709,85.634,23.0959]
[1646603196416,1.58371212,85.704,85.616,24.3204]
[1646603196614,17.525,85.7,85.617,48.0101]
[1646603196814,5.837,85.699,85.62,17.5242]
[1646603197016,8.24631802,85.703,85.62,17.5242]
[1646603197215,58.4159,85.7,85.617,48.0101]
[1646603197419,1.58371212,85.697,85.617,48.0101]
[1646603197617,1.58371212,85.693,85.617,48.0101]
[1646603197817,1.58371212,85.694,85.617,48.0101]
[1646603198014,1.58371212,85.687,85.617,48.0101]
[1646603198215,58.74074801,85.686,85.617,48.0101]
[1646603198516,72.39377815,85.686,85.617,48.0101]
[1646603198714,3.99303014,85.685,85.617,48.0101]
[1646603198916,5.837,85.684,85.617,48.0101]
[1646603199117,17.5279,85.67,85.617,48.0101]
[1646603199317,46.7979479,85.668,85.617,48.0101]
[1646603199515,5.838,85.667,85.617,48.0101]
[1646603199716,5.838,85.667,85.617,24.9142]
[1646603199916,12.568,85.667,85.59,17.5303]
[1646603200217,17.529,85.66,85.59,17.5303]
[1646603201717,5.839,85.659,85.59,17.5303]
[1646603201918,58.86998487,85.649,85.59,17.5303]
[1646603202118,5.839,85.648,85.59,17.5303]
[1646603202319,5.839,85.648,85.585,47.7989]
[1646603203120,17.5324,85.64,85.585,47.7989]
[1646603203319,5.84,85.639,85.585,47.7989]
[1646603205623,5.84,85.649,85.585,47.7989]
[1646603205818,13.94,85.67,85.585,47.7989]
[1646603206019,12.20112141,85.667,85.585,47.7989]
[1646603206220,5.839,85.666,85.586,2.83613526]
[1646603206419,56.31439085,85.679,85.586,2.83613526]
[1646603206623,5.838,85.678,85.59,17.5298]
[1646603207024,5.838,85.678,85.591,2.83613526]
[1646603207221,23.61398794,85.693,85.591,2.83613526]
[1646603207222,5.838,85.692,85.591,2.83613526]
[1646603207623,17.5201,85.7,85.62,17.5191]
[1646603207822,5.837,85.699,85.62,25.8491]
[1646603208329,5.837,85.699,85.622,0.53240529]
[1646603208522,109.70864245,85.723,85.622,0.53240529]
[1646603208722,1.58371212,85.724,85.623,29.71663075]
[1646603208923,1.58371212,85.729,85.64,17.5086]
[1646603209125,50.50033717,85.713,85.65,13.94]
[1646603209324,12.19543309,85.761,85.651,0.73672222]
[1646603209325,5.835,85.712,85.651,0.73672222]
[1646603209725,5.835,85.708,85.641,0.73672222]
[1646603209925,17.5157,85.72,85.65,17.5176]
[1646603210125,17.5157,85.72,85.651,0.73672222]
[1646603210527,48.44806395,85.712,85.641,0.73672222]
[1646603210724,5.836,85.708,85.64,2.83613526]
[1646603211528,5.836,85.708,85.65,17.5171]
[1646603212728,5.836,85.708,85.651,0.8328334]
[1646603213329,17.5158,85.72,85.651,0.8328334]
[1646603213929,17.5158,85.72,85.66,17.5154]
[1646603216140,17.5137,85.73,85.661,0.8328334]
[1646603216437,5.835,85.729,85.67,17.513]
[1646603217045,17.5137,85.73,85.67,17.513]
[1646603217244,17.5115,85.74,85.67,17.513]
[1646603217541,5.835,85.739,85.67,17.513]
[1646603218039,60.9533835,85.736,85.67,17.513]
[1646603218240,17.515,85.73,85.67,17.513]
[1646603219243,5.835,85.729,85.671,0.8328334]
[1646603219643,5.833,85.739,85.68,17.5106]
[1646603219841,5.833,85.739,85.68,26.2106]
[1646603220041,5.833,85.75,85.68,26.2106]
[1646603220242,5.833,85.751,85.681,5.833]
[1646603220444,5.833,85.753,85.681,5.833]
[1646603220643,5.833,85.759,85.69,17.505]
[1646603221740,17.5111,85.74,85.681,5.833]
[1646603221960,5.833,85.739,85.671,0.8328334]
[1646603222160,5.833,85.749,85.671,0.8328334]
[1646603222360,1.58371212,85.751,85.681,0.8328334]
[1646603222761,1.58371212,85.75,85.681,0.8328334]
[1646603222960,17.5156,85.72,85.681,0.8328334]
[1646603223161,120.38832267,85.74,85.681,0.8328334]
[1646603223360,62.00152267,85.74,85.681,0.8328334]
[1646603223560,5.833,85.739,85.681,0.8328334]
[1646603224066,17.5134,85.73,85.681,0.8328334]
[1646603225464,17.5134,85.73,85.671,0.8328334]
[1646603226668,17.5134,85.73,85.672,5.833]
[1646603227065,17.5134,85.73,85.671,6.6658334]
[1646603228268,17.5134,85.73,85.68,17.5119]
[1646603229069,17.5134,85.73,85.681,0.8328334]
[1646603229669,5.833,85.737,85.681,0.8328334]
[1646603229869,2.40931802,85.735,85.681,0.8328334]
[1646603230270,5.833,85.734,85.681,0.8328334]
[1646603230474,7.41671212,85.734,85.681,0.8328334]
[1646603230671,59.80449113,85.707,85.681,0.8328334]
[1646603230871,17.5189,85.7,85.681,3.34e-05]
[1646603231071,5.833,85.699,85.595,5.833]
[1646603231272,1.58371212,85.7,85.595,5.833]
[1646603231473,31.55384538,85.699,85.595,5.833]
[1646603231874,47.42878096,85.698,85.595,5.833]
[1646603232172,17.5283,85.67,85.6,17.5283]
[1646603232372,17.5283,85.67,85.601,5.838]
[1646603232872,17.5283,85.67,85.595,5.838]
[1646603233774,5.838,85.669,85.595,5.838]
[1646603234175,5.838,85.669,85.61,17.5254]
[1646603235186,5.838,85.696,85.612,0.56377452]
[1646603235484,5.838,85.696,85.63,17.5126]
[1646603235677,5.836,85.704,85.63,24.3826]
[1646603235876,5.836,85.704,85.631,47.0494]
[1646603236077,1.58371212,85.707,85.632,5.836]
[1646603236278,5.836,85.706,85.632,5.836]
[1646603236476,5.836,85.707,85.65,17.5181]
[1646603236980,5.835,85.708,85.65,17.5181]